Department Family,Entity,Date,Expense type,Expense area,Supplier,Transaction number,Amount
BEIS,ACAS,05/04/2023,OTHER RESEARCH,STRATEGY,UNIVERSITY OF WESTMINSTER (TRADING) LTD,POIN1413,12000
BEIS,ACAS,05/04/2023,OTHER RESEARCH,STRATEGY,UNIVERSITY OF WESTMINSTER (TRADING) LTD,POIN1414,8400
BEIS,ACAS,01/04/2023,PROFESSIONAL FEES,DDAT,SIRIUS OPEN SOURCE LIMITED,POIN1415,2560.87
BEIS,ACAS,04/04/2023,OTHER RESEARCH,STRATEGY,UNIVERSITY OF WARWICK,POIN1416,9000
BEIS,ACAS,01/04/2023,PROFESSIONAL FEES,DDAT,TISSKI LTD,POIN1422,6400
BEIS,ACAS,11/04/2023,EXTERNAL LEARNING,ODHR,ST JOHNS AMBULANCE,POIN1424,318
BEIS,ACAS,03/04/2023,OCCUPATIONAL HEALTH SERVICE,F&G,FLEXIFORM BUSINESS FURNITURE LTD,POIN1428,552.6
BEIS,ACAS,06/04/2023,CONTRACTOR OFF-PAYROLL IN IR35,DDAT,ALEXANDER MANN SOLUTIONS LTD,POIN1429,3937.86
BEIS,ACAS,06/04/2023,CONTRACTOR OFF-PAYROLL IN IR35,DDAT,ALEXANDER MANN SOLUTIONS LTD,POIN1431,4095.36
BEIS,ACAS,06/04/2023,AGENCY STAFF,DDAT,ALEXANDER MANN SOLUTIONS LTD,POIN1432,2833.3
BEIS,ACAS,06/04/2023,AGENCY STAFF,DDAT,ALEXANDER MANN SOLUTIONS LTD,POIN1433,2045.23
BEIS,ACAS,06/04/2023,LEARNING RESOURCE MATERIALS,ODHR,ALEXANDER MANN SOLUTIONS LTD,POIN1434,19846.84
BEIS,ACAS,06/04/2023,AGENCY STAFF,DDAT,ALEXANDER MANN SOLUTIONS LTD,POIN1435,3408.72
BEIS,ACAS,11/04/2023,SOFTWARE & LICENCES,DDAT,BYTES SOFTWARE SERVICES LIMITED,POIN1436,2389.14
BEIS,ACAS,11/04/2023,PROFESSIONAL FEES,DDAT,ASTEC ASSISTIVE TEC SOLUTIONS LTD,POIN1437,474
BEIS,ACAS,31/03/2023,MANAGED SERVICE Off-PAYROLL WK,DISPUTE,OPENCAST SOFTWARE EUROPE LTD,POIN1438,143802.84
BEIS,ACAS,31/03/2023,MANAGED SERVICE Off-PAYROLL WK,DISPUTE,THE PUBLIC SERVICE CONSULTANTS LIMITED,POIN1439,98640
BEIS,ACAS,13/04/2023,AGENCY STAFF,ODHR,ALEXANDER MANN SOLUTIONS LTD,POIN1441,3202.75
BEIS,ACAS,13/04/2023,EXTERNAL LEARNING,ODHR,THE KNOWLEDGE ACADEMY LIMITED,POIN1442,2394
BEIS,ACAS,12/04/2023,OCCUPATIONAL HEALTH SERVICE,F&G,FLEXIFORM BUSINESS FURNITURE LTD,POIN1444,552.6
BEIS,ACAS,20/02/2023,SOFTWARE & LICENCES,DDAT,SNAP SURVEYS LTD,POIN1445,1128
BEIS,ACAS,20/02/2023,SOFTWARE & LICENCES,DDAT,SNAP SURVEYS LTD,POIN1445,474
BEIS,ACAS,20/02/2023,SOFTWARE & LICENCES,DDAT,SNAP SURVEYS LTD,POIN1445,474
BEIS,ACAS,20/02/2023,SOFTWARE & LICENCES,DDAT,SNAP SURVEYS LTD,POIN1445,786
BEIS,ACAS,20/02/2023,SOFTWARE & LICENCES,DDAT,SNAP SURVEYS LTD,POIN1445,474
BEIS,ACAS,30/03/2023,CONTRACTOR OFF-PAYROLL IN IR35,STRATEGY,ALEXANDER MANN SOLUTIONS LTD,POIN1446,2977.01
BEIS,ACAS,06/04/2023,CONTRACTOR OFF-PAYROLL IN IR35,STRATEGY,ALEXANDER MANN SOLUTIONS LTD,POIN1447,2551.72
BEIS,ACAS,06/04/2023,CONTRACTOR OFF-PAYROLL IN IR35,STRATEGY,ALEXANDER MANN SOLUTIONS LTD,POIN1450,796.18
BEIS,ACAS,18/04/2023,PROFESSIONAL FEES,DDAT,ASTEC ASSISTIVE TEC SOLUTIONS LTD,POIN1451,600
BEIS,ACAS,13/04/2023,PROFESSIONAL FEES,DDAT,ATOS IT SERVICES UK LIMITED,POIN1452,6120
BEIS,ACAS,20/04/2023,AGENCY STAFF,ODHR,ALEXANDER MANN SOLUTIONS LTD,POIN1453,3202.75
BEIS,ACAS,21/04/2023,EXTERNAL LEARNING,ODHR,TRACY MOUNTAIN CONSULTANCY LIMITED,POIN1455,525
BEIS,ACAS,21/04/2023,EXTERNAL LEARNING,ODHR,TRACY MOUNTAIN CONSULTANCY LIMITED,POIN1455,525
BEIS,ACAS,20/04/2023,LEARNING RESOURCE MATERIALS,ODHR,ALEXANDER MANN SOLUTIONS LTD,POIN1456,2362.72
BEIS,ACAS,10/04/2023,PUBLICATIONS AND PERIODICALS,ADVICE,CITY SPRINT UK LIMITED,POIN1457,8808
BEIS,ACAS,13/04/2023,EVALUATION OF OPS ACTIVITIES,STRATEGY,I F F RESEARCH,POIN1458,18000
BEIS,ACAS,20/04/2023,CONTRACTOR OFF-PAYROLL IN IR35,STRATEGY,ALEXANDER MANN SOLUTIONS LTD,POIN1459,2551.71
BEIS,ACAS,20/04/2023,CONTRACTOR OFF-PAYROLL IN IR35,STRATEGY,ALEXANDER MANN SOLUTIONS LTD,POIN1459,2977.01
BEIS,ACAS,31/03/2023,PROFESSIONAL FEES,DISPUTE,LANGUAGE EMPIRE LTD,POIN1460,0.01
BEIS,ACAS,31/03/2023,PROFESSIONAL FEES,ADVICE,LANGUAGE EMPIRE LTD,POIN1460,2400
BEIS,ACAS,31/03/2023,PROFESSIONAL FEES,DISPUTE,LANGUAGE EMPIRE LTD,POIN1460,2400
BEIS,ACAS,31/03/2023,PROFESSIONAL FEES,DISPUTE,LANGUAGE EMPIRE LTD,POIN1460,57.6
BEIS,ACAS,31/03/2023,PROFESSIONAL FEES,ADVICE,LANGUAGE EMPIRE LTD,POIN1460,57.61
BEIS,ACAS,17/04/2023,GOVT SOLICITORS FEES,CO,GOVERNMENT LEGAL DEPARTMENT,POIN1461,1259.52
BEIS,ACAS,21/04/2023,LEARNING RESOURCE MATERIALS,ODHR,ERNST & YOUNG LLP,POIN1462,1915.2
BEIS,ACAS,20/04/2023,CONTRACTOR OFF-PAYROLL IN IR35,DDAT,ALEXANDER MANN SOLUTIONS LTD,POIN1463,8190.72
BEIS,ACAS,25/04/2023,PROFESSIONAL FEES,DDAT,TISSKI LTD,POIN1464,6400
BEIS,ACAS,20/04/2023,CONTRACTOR OFF-PAYROLL IN IR35,DDAT,ALEXANDER MANN SOLUTIONS LTD,POIN1465,6300.58
BEIS,ACAS,24/04/2023,OCCUPATIONAL HEALTH SERVICE,F&G,FLEXIFORM BUSINESS FURNITURE LTD,POIN1466,578.4
BEIS,ACAS,24/04/2023,SOFTWARE & LICENCES,DDAT,BYTES SOFTWARE SERVICES LIMITED,POIN1467,1313.96
BEIS,ACAS,24/04/2023,SOFTWARE & LICENCES,DDAT,BYTES SOFTWARE SERVICES LIMITED,POIN1467,145.92
BEIS,ACAS,24/04/2023,SOFTWARE & LICENCES,DDAT,BYTES SOFTWARE SERVICES LIMITED,POIN1467,5885.14
BEIS,ACAS,24/04/2023,SOFTWARE & LICENCES,DDAT,BYTES SOFTWARE SERVICES LIMITED,POIN1467,653.9
BEIS,ACAS,24/04/2023,SOFTWARE & LICENCES,DDAT,BYTES SOFTWARE SERVICES LIMITED,POIN1467,2474.17
BEIS,ACAS,24/04/2023,SOFTWARE & LICENCES,DDAT,BYTES SOFTWARE SERVICES LIMITED,POIN1467,274.9
BEIS,ACAS,24/04/2023,SOFTWARE & LICENCES,DDAT,BYTES SOFTWARE SERVICES LIMITED,POIN1467,8489.35
BEIS,ACAS,24/04/2023,SOFTWARE & LICENCES,DDAT,BYTES SOFTWARE SERVICES LIMITED,POIN1467,943.01
BEIS,ACAS,24/04/2023,SOFTWARE & LICENCES,DDAT,BYTES SOFTWARE SERVICES LIMITED,POIN1467,4097.76
BEIS,ACAS,24/04/2023,SOFTWARE & LICENCES,DDAT,BYTES SOFTWARE SERVICES LIMITED,POIN1467,455.28
BEIS,ACAS,05/04/2023,DILAPIDATIONS CASH PAY,F&G,GOVERNMENT PROPERTY AGENCY,POIN1470,216386.08
BEIS,ACAS,05/04/2023,DILAPIDATIONS CASH PAY,F&G,GOVERNMENT PROPERTY AGENCY,POIN1470,51256.63
BEIS,ACAS,27/04/2023,COURIERS,DDAT,ACS SYSTEMS UK LTD,POIN1471,6482.57
BEIS,ACAS,27/04/2023,PROFESSIONAL FEES,DDAT,ACS SYSTEMS UK LTD,POIN1471,456
BEIS,ACAS,23/03/2023,MANAGED SERVICE Off-PAYROLL WK,DISPUTE,AXIS 12 LIMITED,POIN1472,112500
BEIS,ACAS,27/04/2023,COURIERS,DDAT,ACS SYSTEMS UK LTD,POIN1473,651.24
BEIS,ACAS,27/04/2023,SYSTEM/EQUIPMENT MAINTENANCE,DDAT,ACS SYSTEMS UK LTD,POIN1473,37.2
BEIS,ACAS,27/04/2023,COURIERS,DDAT,ACS SYSTEMS UK LTD,POIN1473,-651.24
BEIS,ACAS,27/04/2023,SYSTEM/EQUIPMENT MAINTENANCE,DDAT,ACS SYSTEMS UK LTD,POIN1473,-37.2
BEIS,ACAS,24/04/2023,AGENCY STAFF,STRATEGY,MORGAN MCKINLEY GROUP LTD,POIN1474,2266.02
BEIS,ACAS,27/04/2023,EXTERNAL LEARNING,ODHR,PSYSOFT LTD,POIN1475,400.8
BEIS,ACAS,27/04/2023,STAFF RECRUITMENT COSTS,ODHR,CABINET OFFICE,POIN1477,13794.48
BEIS,ACAS,31/01/2023,PUBLIC TRANSPORT & PARKING,ADVICE,CORPORATE TRAVEL MANAGEMENTLIMITED,PINV1613,28.3
BEIS,ACAS,31/01/2023,PUBLIC TRANSPORT & PARKING,ADVICE,CORPORATE TRAVEL MANAGEMENTLIMITED,PINV1613,117.6
BEIS,ACAS,31/01/2023,PUBLIC TRANSPORT & PARKING,ADVICE,CORPORATE TRAVEL MANAGEMENTLIMITED,PINV1613,34.4
BEIS,ACAS,31/01/2023,PUBLIC TRANSPORT & PARKING,F&G,CORPORATE TRAVEL MANAGEMENTLIMITED,PINV1613,188.1
BEIS,ACAS,31/01/2023,PUBLIC TRANSPORT & PARKING,F&G,CORPORATE TRAVEL MANAGEMENTLIMITED,PINV1613,-219.4
BEIS,ACAS,31/01/2023,PUBLIC TRANSPORT & PARKING,STRATEGY,CORPORATE TRAVEL MANAGEMENTLIMITED,PINV1613,144.1
BEIS,ACAS,31/01/2023,PUBLIC TRANSPORT & PARKING,F&G,CORPORATE TRAVEL MANAGEMENTLIMITED,PINV1613,76.4
BEIS,ACAS,31/01/2023,PUBLIC TRANSPORT & PARKING,F&G,CORPORATE TRAVEL MANAGEMENTLIMITED,PINV1613,76.4
BEIS,ACAS,31/01/2023,PUBLIC TRANSPORT & PARKING,F&G,CORPORATE TRAVEL MANAGEMENTLIMITED,PINV1613,195.1
BEIS,ACAS,31/01/2023,PUBLIC TRANSPORT & PARKING,DISPUTE,CORPORATE TRAVEL MANAGEMENTLIMITED,PINV1613,47.5
BEIS,ACAS,31/01/2023,PUBLIC TRANSPORT & PARKING,DISPUTE,CORPORATE TRAVEL MANAGEMENTLIMITED,PINV1613,14.4
BEIS,ACAS,31/01/2023,PUBLIC TRANSPORT & PARKING,DISPUTE,CORPORATE TRAVEL MANAGEMENTLIMITED,PINV1613,14.4
BEIS,ACAS,31/01/2023,HOTEL EXPENSES,ADVICE,CORPORATE TRAVEL MANAGEMENTLIMITED,PINV1613,57.5
BEIS,ACAS,31/01/2023,PUBLIC TRANSPORT & PARKING,ADVICE,CORPORATE TRAVEL MANAGEMENTLIMITED,PINV1613,41.7
BEIS,ACAS,31/01/2023,PUBLIC TRANSPORT & PARKING,ODHR,CORPORATE TRAVEL MANAGEMENTLIMITED,PINV1613,147.1
BEIS,ACAS,31/01/2023,PUBLIC TRANSPORT & PARKING,ADVICE,CORPORATE TRAVEL MANAGEMENTLIMITED,PINV1613,41.7
BEIS,ACAS,31/01/2023,PUBLIC TRANSPORT & PARKING,ADVICE,CORPORATE TRAVEL MANAGEMENTLIMITED,PINV1613,41.7
BEIS,ACAS,31/01/2023,PUBLIC TRANSPORT & PARKING,ADVICE,CORPORATE TRAVEL MANAGEMENTLIMITED,PINV1613,41.7
BEIS,ACAS,31/01/2023,PUBLIC TRANSPORT & PARKING,ADVICE,CORPORATE TRAVEL MANAGEMENTLIMITED,PINV1613,41.7
BEIS,ACAS,31/01/2023,PUBLIC TRANSPORT & PARKING,ADVICE,CORPORATE TRAVEL MANAGEMENTLIMITED,PINV1613,41.7
BEIS,ACAS,31/01/2023,PUBLIC TRANSPORT & PARKING,ODHR,CORPORATE TRAVEL MANAGEMENTLIMITED,PINV1613,59.7
BEIS,ACAS,31/01/2023,PUBLIC TRANSPORT & PARKING,F&G,CORPORATE TRAVEL MANAGEMENTLIMITED,PINV1613,136.9
BEIS,ACAS,31/01/2023,PUBLIC TRANSPORT & PARKING,F&G,CORPORATE TRAVEL MANAGEMENTLIMITED,PINV1613,159.9
BEIS,ACAS,31/01/2023,PUBLIC TRANSPORT & PARKING,DISPUTE,CORPORATE TRAVEL MANAGEMENTLIMITED,PINV1613,275.4
BEIS,ACAS,31/01/2023,HOTEL EXPENSES,ADVICE,CORPORATE TRAVEL MANAGEMENTLIMITED,PINV1613,62.18
BEIS,ACAS,31/01/2023,PUBLIC TRANSPORT & PARKING,DISPUTE,CORPORATE TRAVEL MANAGEMENTLIMITED,PINV1613,298.6
BEIS,ACAS,31/01/2023,PUBLIC TRANSPORT & PARKING,DISPUTE,CORPORATE TRAVEL MANAGEMENTLIMITED,PINV1613,46.5
BEIS,ACAS,31/01/2023,PUBLIC TRANSPORT & PARKING,DISPUTE,CORPORATE TRAVEL MANAGEMENTLIMITED,PINV1613,100.5
BEIS,ACAS,31/01/2023,PUBLIC TRANSPORT & PARKING,DISPUTE,CORPORATE TRAVEL MANAGEMENTLIMITED,PINV1613,21
BEIS,ACAS,31/01/2023,PUBLIC TRANSPORT & PARKING,DISPUTE,CORPORATE TRAVEL MANAGEMENTLIMITED,PINV1613,49.6
BEIS,ACAS,31/01/2023,PUBLIC TRANSPORT & PARKING,ADVICE,CORPORATE TRAVEL MANAGEMENTLIMITED,PINV1613,94
BEIS,ACAS,31/01/2023,PUBLIC TRANSPORT & PARKING,ADVICE,CORPORATE TRAVEL MANAGEMENTLIMITED,PINV1613,94
BEIS,ACAS,31/01/2023,PUBLIC TRANSPORT & PARKING,ODHR,CORPORATE TRAVEL MANAGEMENTLIMITED,PINV1613,189.7
BEIS,ACAS,31/01/2023,PUBLIC TRANSPORT & PARKING,ADVICE,CORPORATE TRAVEL MANAGEMENTLIMITED,PINV1613,72.5
BEIS,ACAS,31/01/2023,PUBLIC TRANSPORT & PARKING,DDAT,CORPORATE TRAVEL MANAGEMENTLIMITED,PINV1613,55.5
BEIS,ACAS,31/01/2023,HOTEL EXPENSES,ADVICE,CORPORATE TRAVEL MANAGEMENTLIMITED,PINV1613,102.25
BEIS,ACAS,31/01/2023,PUBLIC TRANSPORT & PARKING,ADVICE,CORPORATE TRAVEL MANAGEMENTLIMITED,PINV1613,-401.5
BEIS,ACAS,31/01/2023,PUBLIC TRANSPORT & PARKING,ODHR,CORPORATE TRAVEL MANAGEMENTLIMITED,PINV1613,-265.8
BEIS,ACAS,31/01/2023,PUBLIC TRANSPORT & PARKING,F&G,CORPORATE TRAVEL MANAGEMENTLIMITED,PINV1613,46.2
BEIS,ACAS,31/01/2023,PUBLIC TRANSPORT & PARKING,DISPUTE,CORPORATE TRAVEL MANAGEMENTLIMITED,PINV1613,197
BEIS,ACAS,31/01/2023,PUBLIC TRANSPORT & PARKING,DISPUTE,CORPORATE TRAVEL MANAGEMENTLIMITED,PINV1613,14.4
BEIS,ACAS,31/01/2023,PUBLIC TRANSPORT & PARKING,DISPUTE,CORPORATE TRAVEL MANAGEMENTLIMITED,PINV1613,14.4
BEIS,ACAS,31/01/2023,PUBLIC TRANSPORT & PARKING,ADVICE,CORPORATE TRAVEL MANAGEMENTLIMITED,PINV1613,66.3
BEIS,ACAS,31/01/2023,PUBLIC TRANSPORT & PARKING,DISPUTE,CORPORATE TRAVEL MANAGEMENTLIMITED,PINV1613,115.9
BEIS,ACAS,31/01/2023,PUBLIC TRANSPORT & PARKING,ADVICE,CORPORATE TRAVEL MANAGEMENTLIMITED,PINV1613,27.7
BEIS,ACAS,31/01/2023,HOTEL EXPENSES,DISPUTE,CORPORATE TRAVEL MANAGEMENTLIMITED,PINV1613,176
BEIS,ACAS,31/01/2023,HOTEL EXPENSES,ADVICE,CORPORATE TRAVEL MANAGEMENTLIMITED,PINV1613,198.44
BEIS,ACAS,31/01/2023,PUBLIC TRANSPORT & PARKING,STRATEGY,CORPORATE TRAVEL MANAGEMENTLIMITED,PINV1613,41.5
BEIS,ACAS,31/01/2023,PUBLIC TRANSPORT & PARKING,DISPUTE,CORPORATE TRAVEL MANAGEMENTLIMITED,PINV1613,107.5
BEIS,ACAS,31/01/2023,PUBLIC TRANSPORT & PARKING,F&G,CORPORATE TRAVEL MANAGEMENTLIMITED,PINV1613,160.5
BEIS,ACAS,31/01/2023,PUBLIC TRANSPORT & PARKING,DISPUTE,CORPORATE TRAVEL MANAGEMENTLIMITED,PINV1613,86.5
BEIS,ACAS,31/01/2023,PUBLIC TRANSPORT & PARKING,ODHR,CORPORATE TRAVEL MANAGEMENTLIMITED,PINV1613,67.3
BEIS,ACAS,31/01/2023,HOTEL EXPENSES,ADVICE,CORPORATE TRAVEL MANAGEMENTLIMITED,PINV1613,105.55
BEIS,ACAS,31/01/2023,PUBLIC TRANSPORT & PARKING,ODHR,CORPORATE TRAVEL MANAGEMENTLIMITED,PINV1613,124
BEIS,ACAS,31/01/2023,PUBLIC TRANSPORT & PARKING,ODHR,CORPORATE TRAVEL MANAGEMENTLIMITED,PINV1613,99.1
BEIS,ACAS,31/01/2023,CO&CAC Non Staff T&S,CAC,CORPORATE TRAVEL MANAGEMENTLIMITED,PINV1613,86.95
BEIS,ACAS,31/01/2023,HOTEL EXPENSES,ODHR,CORPORATE TRAVEL MANAGEMENTLIMITED,PINV1613,297.66
BEIS,ACAS,31/01/2023,HOTEL EXPENSES,DISPUTE,CORPORATE TRAVEL MANAGEMENTLIMITED,PINV1613,176
BEIS,ACAS,31/01/2023,HOTEL EXPENSES,ODHR,CORPORATE TRAVEL MANAGEMENTLIMITED,PINV1613,198.44
BEIS,ACAS,31/01/2023,HOTEL EXPENSES,DISPUTE,CORPORATE TRAVEL MANAGEMENTLIMITED,PINV1613,176
BEIS,ACAS,31/01/2023,HOTEL EXPENSES,DISPUTE,CORPORATE TRAVEL MANAGEMENTLIMITED,PINV1613,176
BEIS,ACAS,31/01/2023,HOTEL EXPENSES,ODHR,CORPORATE TRAVEL MANAGEMENTLIMITED,PINV1613,198.44
BEIS,ACAS,31/01/2023,PUBLIC TRANSPORT & PARKING,DDAT,CORPORATE TRAVEL MANAGEMENTLIMITED,PINV1613,135.2
BEIS,ACAS,31/01/2023,PUBLIC TRANSPORT & PARKING,DDAT,CORPORATE TRAVEL MANAGEMENTLIMITED,PINV1613,147.6
BEIS,ACAS,31/01/2023,PUBLIC TRANSPORT & PARKING,ODHR,CORPORATE TRAVEL MANAGEMENTLIMITED,PINV1613,121.5
BEIS,ACAS,31/01/2023,PUBLIC TRANSPORT & PARKING,DDAT,CORPORATE TRAVEL MANAGEMENTLIMITED,PINV1613,101.4
BEIS,ACAS,31/01/2023,PUBLIC TRANSPORT & PARKING,ADVICE,CORPORATE TRAVEL MANAGEMENTLIMITED,PINV1613,112
BEIS,ACAS,31/01/2023,PUBLIC TRANSPORT & PARKING,ODHR,CORPORATE TRAVEL MANAGEMENTLIMITED,PINV1613,219.8
BEIS,ACAS,31/01/2023,HOTEL EXPENSES,ADVICE,CORPORATE TRAVEL MANAGEMENTLIMITED,PINV1613,99.22
BEIS,ACAS,31/01/2023,HOTEL EXPENSES,ODHR,CORPORATE TRAVEL MANAGEMENTLIMITED,PINV1613,99.22
BEIS,ACAS,31/01/2023,HOTEL EXPENSES,ODHR,CORPORATE TRAVEL MANAGEMENTLIMITED,PINV1613,99.22
BEIS,ACAS,31/01/2023,HOTEL EXPENSES,ADVICE,CORPORATE TRAVEL MANAGEMENTLIMITED,PINV1613,99.22
BEIS,ACAS,31/01/2023,HOTEL EXPENSES,ADVICE,CORPORATE TRAVEL MANAGEMENTLIMITED,PINV1613,99.22
BEIS,ACAS,31/01/2023,HOTEL EXPENSES,ADVICE,CORPORATE TRAVEL MANAGEMENTLIMITED,PINV1613,70
BEIS,ACAS,31/01/2023,HOTEL EXPENSES,ADVICE,CORPORATE TRAVEL MANAGEMENTLIMITED,PINV1613,91
BEIS,ACAS,31/01/2023,HOTEL EXPENSES,ADVICE,CORPORATE TRAVEL MANAGEMENTLIMITED,PINV1613,99.22
BEIS,ACAS,31/01/2023,HOTEL EXPENSES,ADVICE,CORPORATE TRAVEL MANAGEMENTLIMITED,PINV1613,70
BEIS,ACAS,31/01/2023,HOTEL EXPENSES,STRATEGY,CORPORATE TRAVEL MANAGEMENTLIMITED,PINV1613,121.85
BEIS,ACAS,31/01/2023,HOTEL EXPENSES,ADVICE,CORPORATE TRAVEL MANAGEMENTLIMITED,PINV1613,70
BEIS,ACAS,31/01/2023,HOTEL EXPENSES,ADVICE,CORPORATE TRAVEL MANAGEMENTLIMITED,PINV1613,70
BEIS,ACAS,31/01/2023,HOTEL EXPENSES,ADVICE,CORPORATE TRAVEL MANAGEMENTLIMITED,PINV1613,91
BEIS,ACAS,31/01/2023,PUBLIC TRANSPORT & PARKING,F&G,CORPORATE TRAVEL MANAGEMENTLIMITED,PINV1613,45.65
BEIS,ACAS,31/01/2023,PUBLIC TRANSPORT & PARKING,F&G,CORPORATE TRAVEL MANAGEMENTLIMITED,PINV1613,52.2
BEIS,ACAS,31/01/2023,PUBLIC TRANSPORT & PARKING,F&G,CORPORATE TRAVEL MANAGEMENTLIMITED,PINV1613,99
BEIS,ACAS,31/01/2023,PUBLIC TRANSPORT & PARKING,DISPUTE,CORPORATE TRAVEL MANAGEMENTLIMITED,PINV1613,87.2
BEIS,ACAS,31/01/2023,PUBLIC TRANSPORT & PARKING,DISPUTE,CORPORATE TRAVEL MANAGEMENTLIMITED,PINV1613,114
BEIS,ACAS,31/01/2023,PUBLIC TRANSPORT & PARKING,DISPUTE,CORPORATE TRAVEL MANAGEMENTLIMITED,PINV1613,14.4
BEIS,ACAS,31/01/2023,PUBLIC TRANSPORT & PARKING,DDAT,CORPORATE TRAVEL MANAGEMENTLIMITED,PINV1613,80
BEIS,ACAS,31/01/2023,PUBLIC TRANSPORT & PARKING,F&G,CORPORATE TRAVEL MANAGEMENTLIMITED,PINV1613,35.7
BEIS,ACAS,31/01/2023,PUBLIC TRANSPORT & PARKING,ADVICE,CORPORATE TRAVEL MANAGEMENTLIMITED,PINV1613,189
BEIS,ACAS,31/01/2023,PUBLIC TRANSPORT & PARKING,F&G,CORPORATE TRAVEL MANAGEMENTLIMITED,PINV1613,129.5
BEIS,ACAS,31/01/2023,PUBLIC TRANSPORT & PARKING,F&G,CORPORATE TRAVEL MANAGEMENTLIMITED,PINV1613,47.4
BEIS,ACAS,31/01/2023,PUBLIC TRANSPORT & PARKING,DISPUTE,CORPORATE TRAVEL MANAGEMENTLIMITED,PINV1613,158.5
BEIS,ACAS,31/01/2023,PUBLIC TRANSPORT & PARKING,DDAT,CORPORATE TRAVEL MANAGEMENTLIMITED,PINV1613,145.4
BEIS,ACAS,31/01/2023,PUBLIC TRANSPORT & PARKING,DDAT,CORPORATE TRAVEL MANAGEMENTLIMITED,PINV1613,14.4
BEIS,ACAS,31/01/2023,HOTEL EXPENSES,DISPUTE,CORPORATE TRAVEL MANAGEMENTLIMITED,PINV1613,107.42
BEIS,ACAS,31/01/2023,HOTEL EXPENSES,ADVICE,CORPORATE TRAVEL MANAGEMENTLIMITED,PINV1613,137.05
BEIS,ACAS,31/01/2023,PUBLIC TRANSPORT & PARKING,ADVICE,CORPORATE TRAVEL MANAGEMENTLIMITED,PINV1613,99.3
BEIS,ACAS,31/01/2023,PUBLIC TRANSPORT & PARKING,STRATEGY,CORPORATE TRAVEL MANAGEMENTLIMITED,PINV1613,125.7
BEIS,ACAS,31/01/2023,PUBLIC TRANSPORT & PARKING,DDAT,CORPORATE TRAVEL MANAGEMENTLIMITED,PINV1613,149.8
BEIS,ACAS,31/01/2023,PUBLIC TRANSPORT & PARKING,DDAT,CORPORATE TRAVEL MANAGEMENTLIMITED,PINV1613,149.8
BEIS,ACAS,31/01/2023,PUBLIC TRANSPORT & PARKING,DISPUTE,CORPORATE TRAVEL MANAGEMENTLIMITED,PINV1613,148.6
BEIS,ACAS,31/01/2023,PUBLIC TRANSPORT & PARKING,DDAT,CORPORATE TRAVEL MANAGEMENTLIMITED,PINV1613,78.4
BEIS,ACAS,31/01/2023,PUBLIC TRANSPORT & PARKING,ODHR,CORPORATE TRAVEL MANAGEMENTLIMITED,PINV1613,365.6
BEIS,ACAS,31/01/2023,PUBLIC TRANSPORT & PARKING,DISPUTE,CORPORATE TRAVEL MANAGEMENTLIMITED,PINV1613,109.9
BEIS,ACAS,31/01/2023,PUBLIC TRANSPORT & PARKING,DDAT,CORPORATE TRAVEL MANAGEMENTLIMITED,PINV1613,16.2
BEIS,ACAS,31/01/2023,PUBLIC TRANSPORT & PARKING,ADVICE,CORPORATE TRAVEL MANAGEMENTLIMITED,PINV1613,133.2
BEIS,ACAS,31/01/2023,PUBLIC TRANSPORT & PARKING,DISPUTE,CORPORATE TRAVEL MANAGEMENTLIMITED,PINV1613,-105.5
BEIS,ACAS,31/01/2023,PUBLIC TRANSPORT & PARKING,F&G,CORPORATE TRAVEL MANAGEMENTLIMITED,PINV1613,271.9
BEIS,ACAS,31/01/2023,HOTEL EXPENSES,DDAT,CORPORATE TRAVEL MANAGEMENTLIMITED,PINV1613,372
BEIS,ACAS,31/01/2023,HOTEL EXPENSES,DDAT,CORPORATE TRAVEL MANAGEMENTLIMITED,PINV1613,143
BEIS,ACAS,31/01/2023,HOTEL EXPENSES,ADVICE,CORPORATE TRAVEL MANAGEMENTLIMITED,PINV1613,108.33
BEIS,ACAS,31/01/2023,HOTEL EXPENSES,DDAT,CORPORATE TRAVEL MANAGEMENTLIMITED,PINV1613,372
BEIS,ACAS,31/01/2023,HOTEL EXPENSES,F&G,CORPORATE TRAVEL MANAGEMENTLIMITED,PINV1613,161
BEIS,ACAS,31/01/2023,PUBLIC TRANSPORT & PARKING,STRATEGY,CORPORATE TRAVEL MANAGEMENTLIMITED,PINV1613,70
BEIS,ACAS,31/01/2023,PUBLIC TRANSPORT & PARKING,DISPUTE,CORPORATE TRAVEL MANAGEMENTLIMITED,PINV1613,202.2
BEIS,ACAS,31/01/2023,PUBLIC TRANSPORT & PARKING,STRATEGY,CORPORATE TRAVEL MANAGEMENTLIMITED,PINV1613,128.3
BEIS,ACAS,31/01/2023,PUBLIC TRANSPORT & PARKING,ADVICE,CORPORATE TRAVEL MANAGEMENTLIMITED,PINV1613,20
BEIS,ACAS,31/01/2023,HOTEL EXPENSES,F&G,CORPORATE TRAVEL MANAGEMENTLIMITED,PINV1613,67
BEIS,ACAS,31/01/2023,HOTEL EXPENSES,DISPUTE,CORPORATE TRAVEL MANAGEMENTLIMITED,PINV1613,67
BEIS,ACAS,31/01/2023,HOTEL EXPENSES,STRATEGY,CORPORATE TRAVEL MANAGEMENTLIMITED,PINV1613,67
BEIS,ACAS,31/01/2023,HOTEL EXPENSES,ODHR,CORPORATE TRAVEL MANAGEMENTLIMITED,PINV1613,67
BEIS,ACAS,31/01/2023,HOTEL EXPENSES,F&G,CORPORATE TRAVEL MANAGEMENTLIMITED,PINV1613,67
BEIS,ACAS,31/01/2023,HOTEL EXPENSES,F&G,CORPORATE TRAVEL MANAGEMENTLIMITED,PINV1613,67
BEIS,ACAS,31/01/2023,HOTEL EXPENSES,DISPUTE,CORPORATE TRAVEL MANAGEMENTLIMITED,PINV1613,67
BEIS,ACAS,31/01/2023,PUBLIC TRANSPORT & PARKING,STRATEGY,CORPORATE TRAVEL MANAGEMENTLIMITED,PINV1613,124.6
BEIS,ACAS,31/01/2023,PUBLIC TRANSPORT & PARKING,DDAT,CORPORATE TRAVEL MANAGEMENTLIMITED,PINV1613,154.6
BEIS,ACAS,31/01/2023,PUBLIC TRANSPORT & PARKING,DDAT,CORPORATE TRAVEL MANAGEMENTLIMITED,PINV1613,154.6
BEIS,ACAS,31/01/2023,PUBLIC TRANSPORT & PARKING,DDAT,CORPORATE TRAVEL MANAGEMENTLIMITED,PINV1613,148.6
BEIS,ACAS,31/01/2023,PUBLIC TRANSPORT & PARKING,DISPUTE,CORPORATE TRAVEL MANAGEMENTLIMITED,PINV1613,-17.4
BEIS,ACAS,31/01/2023,PUBLIC TRANSPORT & PARKING,DISPUTE,CORPORATE TRAVEL MANAGEMENTLIMITED,PINV1613,-128.2
BEIS,ACAS,31/01/2023,HOTEL EXPENSES,ODHR,CORPORATE TRAVEL MANAGEMENTLIMITED,PINV1613,171
BEIS,ACAS,31/01/2023,PUBLIC TRANSPORT & PARKING,F&G,CORPORATE TRAVEL MANAGEMENTLIMITED,PINV1613,14.4
BEIS,ACAS,31/01/2023,PUBLIC TRANSPORT & PARKING,DISPUTE,CORPORATE TRAVEL MANAGEMENTLIMITED,PINV1613,203
BEIS,ACAS,31/01/2023,HOTEL EXPENSES,DDAT,CORPORATE TRAVEL MANAGEMENTLIMITED,PINV1613,111.6
BEIS,ACAS,31/01/2023,HOTEL EXPENSES,DDAT,CORPORATE TRAVEL MANAGEMENTLIMITED,PINV1613,186
BEIS,ACAS,31/01/2023,HOTEL EXPENSES,DDAT,CORPORATE TRAVEL MANAGEMENTLIMITED,PINV1613,169
BEIS,ACAS,31/01/2023,HOTEL EXPENSES,ADVICE,CORPORATE TRAVEL MANAGEMENTLIMITED,PINV1613,66.12
BEIS,ACAS,31/01/2023,HOTEL EXPENSES,DDAT,CORPORATE TRAVEL MANAGEMENTLIMITED,PINV1613,179
BEIS,ACAS,31/01/2023,HOTEL EXPENSES,ADVICE,CORPORATE TRAVEL MANAGEMENTLIMITED,PINV1613,67
BEIS,ACAS,31/01/2023,HOTEL EXPENSES,DDAT,CORPORATE TRAVEL MANAGEMENTLIMITED,PINV1613,186
BEIS,ACAS,31/01/2023,HOTEL EXPENSES,ADVICE,CORPORATE TRAVEL MANAGEMENTLIMITED,PINV1613,121.85
BEIS,ACAS,31/01/2023,PUBLIC TRANSPORT & PARKING,ODHR,CORPORATE TRAVEL MANAGEMENTLIMITED,PINV1613,135.1
BEIS,ACAS,31/01/2023,PUBLIC TRANSPORT & PARKING,F&G,CORPORATE TRAVEL MANAGEMENTLIMITED,PINV1613,140
BEIS,ACAS,31/01/2023,PUBLIC TRANSPORT & PARKING,STRATEGY,CORPORATE TRAVEL MANAGEMENTLIMITED,PINV1613,209.8
BEIS,ACAS,31/01/2023,PUBLIC TRANSPORT & PARKING,DISPUTE,CORPORATE TRAVEL MANAGEMENTLIMITED,PINV1613,100.5
BEIS,ACAS,31/01/2023,PUBLIC TRANSPORT & PARKING,DISPUTE,CORPORATE TRAVEL MANAGEMENTLIMITED,PINV1613,65
BEIS,ACAS,31/01/2023,PUBLIC TRANSPORT & PARKING,DISPUTE,CORPORATE TRAVEL MANAGEMENTLIMITED,PINV1613,39.6
BEIS,ACAS,31/01/2023,PUBLIC TRANSPORT & PARKING,DDAT,CORPORATE TRAVEL MANAGEMENTLIMITED,PINV1613,185
BEIS,ACAS,31/01/2023,PUBLIC TRANSPORT & PARKING,DDAT,CORPORATE TRAVEL MANAGEMENTLIMITED,PINV1613,67
BEIS,ACAS,31/01/2023,PUBLIC TRANSPORT & PARKING,ODHR,CORPORATE TRAVEL MANAGEMENTLIMITED,PINV1613,189.2
BEIS,ACAS,31/01/2023,PUBLIC TRANSPORT & PARKING,ADVICE,CORPORATE TRAVEL MANAGEMENTLIMITED,PINV1613,256.3
BEIS,ACAS,31/01/2023,PUBLIC TRANSPORT & PARKING,F&G,CORPORATE TRAVEL MANAGEMENTLIMITED,PINV1613,141.7
BEIS,ACAS,31/01/2023,PUBLIC TRANSPORT & PARKING,F&G,CORPORATE TRAVEL MANAGEMENTLIMITED,PINV1613,374.8
BEIS,ACAS,31/01/2023,PUBLIC TRANSPORT & PARKING,DDAT,CORPORATE TRAVEL MANAGEMENTLIMITED,PINV1613,6.3
BEIS,ACAS,31/01/2023,PUBLIC TRANSPORT & PARKING,DDAT,CORPORATE TRAVEL MANAGEMENTLIMITED,PINV1613,6.3
BEIS,ACAS,31/01/2023,HOTEL EXPENSES,DDAT,CORPORATE TRAVEL MANAGEMENTLIMITED,PINV1613,140
BEIS,ACAS,31/01/2023,PUBLIC TRANSPORT & PARKING,DISPUTE,CORPORATE TRAVEL MANAGEMENTLIMITED,PINV1613,49.1
BEIS,ACAS,31/01/2023,PUBLIC TRANSPORT & PARKING,STRATEGY,CORPORATE TRAVEL MANAGEMENTLIMITED,PINV1613,250.9
BEIS,ACAS,31/01/2023,PUBLIC TRANSPORT & PARKING,DISPUTE,CORPORATE TRAVEL MANAGEMENTLIMITED,PINV1613,304.5
BEIS,ACAS,31/01/2023,PUBLIC TRANSPORT & PARKING,ADVICE,CORPORATE TRAVEL MANAGEMENTLIMITED,PINV1613,176.4
BEIS,ACAS,31/01/2023,PUBLIC TRANSPORT & PARKING,F&G,CORPORATE TRAVEL MANAGEMENTLIMITED,PINV1613,190
BEIS,ACAS,31/01/2023,PUBLIC TRANSPORT & PARKING,F&G,CORPORATE TRAVEL MANAGEMENTLIMITED,PINV1613,46.2
BEIS,ACAS,31/01/2023,PUBLIC TRANSPORT & PARKING,F&G,CORPORATE TRAVEL MANAGEMENTLIMITED,PINV1613,203
BEIS,ACAS,31/01/2023,PUBLIC TRANSPORT & PARKING,ODHR,CORPORATE TRAVEL MANAGEMENTLIMITED,PINV1613,106.7
BEIS,ACAS,31/01/2023,PUBLIC TRANSPORT & PARKING,ODHR,CORPORATE TRAVEL MANAGEMENTLIMITED,PINV1613,58.2
BEIS,ACAS,31/01/2023,HOTEL EXPENSES,ADVICE,CORPORATE TRAVEL MANAGEMENTLIMITED,PINV1613,75.08
BEIS,ACAS,31/01/2023,HOTEL EXPENSES,F&G,CORPORATE TRAVEL MANAGEMENTLIMITED,PINV1613,141
BEIS,ACAS,31/01/2023,PUBLIC TRANSPORT & PARKING,DISPUTE,CORPORATE TRAVEL MANAGEMENTLIMITED,PINV1613,108.6
BEIS,ACAS,31/01/2023,HOTEL EXPENSES,ADVICE,CORPORATE TRAVEL MANAGEMENTLIMITED,PINV1613,103.45
BEIS,ACAS,31/01/2023,HOTEL EXPENSES,ADVICE,CORPORATE TRAVEL MANAGEMENTLIMITED,PINV1613,103.4
BEIS,ACAS,31/01/2023,HOTEL EXPENSES,ADVICE,CORPORATE TRAVEL MANAGEMENTLIMITED,PINV1613,34.92
BEIS,ACAS,31/01/2023,PUBLIC TRANSPORT & PARKING,ADVICE,CORPORATE TRAVEL MANAGEMENTLIMITED,PINV1613,105.6
BEIS,ACAS,31/01/2023,PUBLIC TRANSPORT & PARKING,F&G,CORPORATE TRAVEL MANAGEMENTLIMITED,PINV1613,203
BEIS,ACAS,31/01/2023,PUBLIC TRANSPORT & PARKING,STRATEGY,CORPORATE TRAVEL MANAGEMENTLIMITED,PINV1613,14.4
BEIS,ACAS,31/01/2023,PUBLIC TRANSPORT & PARKING,ADVICE,CORPORATE TRAVEL MANAGEMENTLIMITED,PINV1613,171
BEIS,ACAS,31/01/2023,PUBLIC TRANSPORT & PARKING,ODHR,CORPORATE TRAVEL MANAGEMENTLIMITED,PINV1613,209.1
BEIS,ACAS,31/01/2023,HOTEL EXPENSES,ADVICE,CORPORATE TRAVEL MANAGEMENTLIMITED,PINV1613,75
BEIS,ACAS,31/01/2023,HOTEL EXPENSES,ADVICE,CORPORATE TRAVEL MANAGEMENTLIMITED,PINV1613,71.25
BEIS,ACAS,31/01/2023,HOTEL EXPENSES,ADVICE,CORPORATE TRAVEL MANAGEMENTLIMITED,PINV1613,84.52
BEIS,ACAS,31/01/2023,HOTEL EXPENSES,STRATEGY,CORPORATE TRAVEL MANAGEMENTLIMITED,PINV1613,322.55
BEIS,ACAS,31/01/2023,HOTEL EXPENSES,STRATEGY,CORPORATE TRAVEL MANAGEMENTLIMITED,PINV1613,322.55
BEIS,ACAS,31/01/2023,PUBLIC TRANSPORT & PARKING,ODHR,CORPORATE TRAVEL MANAGEMENTLIMITED,PINV1613,194.8
BEIS,ACAS,31/01/2023,PUBLIC TRANSPORT & PARKING,STRATEGY,CORPORATE TRAVEL MANAGEMENTLIMITED,PINV1613,84.5
BEIS,ACAS,31/01/2023,PUBLIC TRANSPORT & PARKING,F&G,CORPORATE TRAVEL MANAGEMENTLIMITED,PINV1613,200
BEIS,ACAS,31/01/2023,PUBLIC TRANSPORT & PARKING,F&G,CORPORATE TRAVEL MANAGEMENTLIMITED,PINV1613,86.68
BEIS,ACAS,31/01/2023,PUBLIC TRANSPORT & PARKING,DISPUTE,CORPORATE TRAVEL MANAGEMENTLIMITED,PINV1613,14.4
BEIS,ACAS,31/01/2023,PUBLIC TRANSPORT & PARKING,DISPUTE,CORPORATE TRAVEL MANAGEMENTLIMITED,PINV1613,49.9
BEIS,ACAS,31/01/2023,PUBLIC TRANSPORT & PARKING,F&G,CORPORATE TRAVEL MANAGEMENTLIMITED,PINV1613,52
BEIS,ACAS,31/01/2023,PUBLIC TRANSPORT & PARKING,F&G,CORPORATE TRAVEL MANAGEMENTLIMITED,PINV1613,64
BEIS,ACAS,31/01/2023,HOTEL EXPENSES,F&G,CORPORATE TRAVEL MANAGEMENTLIMITED,PINV1613,141
BEIS,ACAS,31/01/2023,HOTEL EXPENSES,DDAT,CORPORATE TRAVEL MANAGEMENTLIMITED,PINV1613,125
BEIS,ACAS,31/01/2023,HOTEL EXPENSES,STRATEGY,CORPORATE TRAVEL MANAGEMENTLIMITED,PINV1613,125
BEIS,ACAS,31/01/2023,HOTEL EXPENSES,F&G,CORPORATE TRAVEL MANAGEMENTLIMITED,PINV1613,141
BEIS,ACAS,31/01/2023,HOTEL EXPENSES,DDAT,CORPORATE TRAVEL MANAGEMENTLIMITED,PINV1613,161
BEIS,ACAS,31/01/2023,HOTEL EXPENSES,F&G,CORPORATE TRAVEL MANAGEMENTLIMITED,PINV1613,125
BEIS,ACAS,31/01/2023,HOTEL EXPENSES,DISPUTE,CORPORATE TRAVEL MANAGEMENTLIMITED,PINV1613,125
BEIS,ACAS,31/01/2023,HOTEL EXPENSES,F&G,CORPORATE TRAVEL MANAGEMENTLIMITED,PINV1613,141
BEIS,ACAS,31/01/2023,HOTEL EXPENSES,F&G,CORPORATE TRAVEL MANAGEMENTLIMITED,PINV1613,125
BEIS,ACAS,31/01/2023,HOTEL EXPENSES,F&G,CORPORATE TRAVEL MANAGEMENTLIMITED,PINV1613,125
BEIS,ACAS,31/01/2023,HOTEL EXPENSES,ADVICE,CORPORATE TRAVEL MANAGEMENTLIMITED,PINV1613,79.57
BEIS,ACAS,31/01/2023,HOTEL EXPENSES,ODHR,CORPORATE TRAVEL MANAGEMENTLIMITED,PINV1613,125
BEIS,ACAS,31/01/2023,HOTEL EXPENSES,DISPUTE,CORPORATE TRAVEL MANAGEMENTLIMITED,PINV1613,221.4
BEIS,ACAS,31/01/2023,HOTEL EXPENSES,F&G,CORPORATE TRAVEL MANAGEMENTLIMITED,PINV1613,125
BEIS,ACAS,31/01/2023,HOTEL EXPENSES,DISPUTE,CORPORATE TRAVEL MANAGEMENTLIMITED,PINV1613,125
BEIS,ACAS,31/01/2023,HOTEL EXPENSES,ODHR,CORPORATE TRAVEL MANAGEMENTLIMITED,PINV1613,147
BEIS,ACAS,31/01/2023,PUBLIC TRANSPORT & PARKING,DDAT,CORPORATE TRAVEL MANAGEMENTLIMITED,PINV1613,46.2
BEIS,ACAS,31/01/2023,PUBLIC TRANSPORT & PARKING,ODHR,CORPORATE TRAVEL MANAGEMENTLIMITED,PINV1613,52.2
BEIS,ACAS,31/01/2023,PUBLIC TRANSPORT & PARKING,ODHR,CORPORATE TRAVEL MANAGEMENTLIMITED,PINV1613,244.8
BEIS,ACAS,31/01/2023,PUBLIC TRANSPORT & PARKING,ADVICE,CORPORATE TRAVEL MANAGEMENTLIMITED,PINV1613,90.5
BEIS,ACAS,31/01/2023,PUBLIC TRANSPORT & PARKING,ADVICE,CORPORATE TRAVEL MANAGEMENTLIMITED,PINV1613,90.5
BEIS,ACAS,31/01/2023,HOTEL EXPENSES,ADVICE,CORPORATE TRAVEL MANAGEMENTLIMITED,PINV1613,90.83
BEIS,ACAS,31/01/2023,HOTEL EXPENSES,STRATEGY,CORPORATE TRAVEL MANAGEMENTLIMITED,PINV1613,141
BEIS,ACAS,31/01/2023,HOTEL EXPENSES,CENTRE,CORPORATE TRAVEL MANAGEMENTLIMITED,PINV1613,123.05
BEIS,ACAS,31/01/2023,PUBLIC TRANSPORT & PARKING,F&G,CORPORATE TRAVEL MANAGEMENTLIMITED,PINV1613,97.95
BEIS,ACAS,31/01/2023,PUBLIC TRANSPORT & PARKING,ADVICE,CORPORATE TRAVEL MANAGEMENTLIMITED,PINV1613,126.4
BEIS,ACAS,31/01/2023,PUBLIC TRANSPORT & PARKING,ODHR,CORPORATE TRAVEL MANAGEMENTLIMITED,PINV1613,163.65
BEIS,ACAS,31/01/2023,HOTEL EXPENSES,CENTRE,CORPORATE TRAVEL MANAGEMENTLIMITED,PINV1613,611
BEIS,ACAS,31/01/2023,PUBLIC TRANSPORT & PARKING,ADVICE,CORPORATE TRAVEL MANAGEMENTLIMITED,PINV1613,-28.3
BEIS,ACAS,31/01/2023,PUBLIC TRANSPORT & PARKING,ADVICE,CORPORATE TRAVEL MANAGEMENTLIMITED,PINV1613,-117.6
BEIS,ACAS,31/01/2023,PUBLIC TRANSPORT & PARKING,ADVICE,CORPORATE TRAVEL MANAGEMENTLIMITED,PINV1613,-34.4
BEIS,ACAS,31/01/2023,PUBLIC TRANSPORT & PARKING,F&G,CORPORATE TRAVEL MANAGEMENTLIMITED,PINV1613,-188.1
BEIS,ACAS,31/01/2023,PUBLIC TRANSPORT & PARKING,F&G,CORPORATE TRAVEL MANAGEMENTLIMITED,PINV1613,219.4
BEIS,ACAS,31/01/2023,PUBLIC TRANSPORT & PARKING,STRATEGY,CORPORATE TRAVEL MANAGEMENTLIMITED,PINV1613,-144.1
BEIS,ACAS,31/01/2023,PUBLIC TRANSPORT & PARKING,F&G,CORPORATE TRAVEL MANAGEMENTLIMITED,PINV1613,-76.4
BEIS,ACAS,31/01/2023,PUBLIC TRANSPORT & PARKING,F&G,CORPORATE TRAVEL MANAGEMENTLIMITED,PINV1613,-76.4
BEIS,ACAS,31/01/2023,PUBLIC TRANSPORT & PARKING,F&G,CORPORATE TRAVEL MANAGEMENTLIMITED,PINV1613,-195.1
BEIS,ACAS,31/01/2023,PUBLIC TRANSPORT & PARKING,DISPUTE,CORPORATE TRAVEL MANAGEMENTLIMITED,PINV1613,-47.5
BEIS,ACAS,31/01/2023,PUBLIC TRANSPORT & PARKING,DISPUTE,CORPORATE TRAVEL MANAGEMENTLIMITED,PINV1613,-14.4
BEIS,ACAS,31/01/2023,PUBLIC TRANSPORT & PARKING,DISPUTE,CORPORATE TRAVEL MANAGEMENTLIMITED,PINV1613,-14.4
BEIS,ACAS,31/01/2023,HOTEL EXPENSES,ADVICE,CORPORATE TRAVEL MANAGEMENTLIMITED,PINV1613,-57.5
BEIS,ACAS,31/01/2023,PUBLIC TRANSPORT & PARKING,ADVICE,CORPORATE TRAVEL MANAGEMENTLIMITED,PINV1613,-41.7
BEIS,ACAS,31/01/2023,PUBLIC TRANSPORT & PARKING,ODHR,CORPORATE TRAVEL MANAGEMENTLIMITED,PINV1613,-147.1
BEIS,ACAS,31/01/2023,PUBLIC TRANSPORT & PARKING,ADVICE,CORPORATE TRAVEL MANAGEMENTLIMITED,PINV1613,-41.7
BEIS,ACAS,31/01/2023,PUBLIC TRANSPORT & PARKING,ADVICE,CORPORATE TRAVEL MANAGEMENTLIMITED,PINV1613,-41.7
BEIS,ACAS,31/01/2023,PUBLIC TRANSPORT & PARKING,ADVICE,CORPORATE TRAVEL MANAGEMENTLIMITED,PINV1613,-41.7
BEIS,ACAS,31/01/2023,PUBLIC TRANSPORT & PARKING,ADVICE,CORPORATE TRAVEL MANAGEMENTLIMITED,PINV1613,-41.7
BEIS,ACAS,31/01/2023,PUBLIC TRANSPORT & PARKING,ADVICE,CORPORATE TRAVEL MANAGEMENTLIMITED,PINV1613,-41.7
BEIS,ACAS,31/01/2023,PUBLIC TRANSPORT & PARKING,ODHR,CORPORATE TRAVEL MANAGEMENTLIMITED,PINV1613,-59.7
BEIS,ACAS,31/01/2023,PUBLIC TRANSPORT & PARKING,F&G,CORPORATE TRAVEL MANAGEMENTLIMITED,PINV1613,-136.9
BEIS,ACAS,31/01/2023,PUBLIC TRANSPORT & PARKING,F&G,CORPORATE TRAVEL MANAGEMENTLIMITED,PINV1613,-159.9
BEIS,ACAS,31/01/2023,PUBLIC TRANSPORT & PARKING,DISPUTE,CORPORATE TRAVEL MANAGEMENTLIMITED,PINV1613,-275.4
BEIS,ACAS,31/01/2023,HOTEL EXPENSES,ADVICE,CORPORATE TRAVEL MANAGEMENTLIMITED,PINV1613,-62.18
BEIS,ACAS,31/01/2023,PUBLIC TRANSPORT & PARKING,DISPUTE,CORPORATE TRAVEL MANAGEMENTLIMITED,PINV1613,-298.6
BEIS,ACAS,31/01/2023,PUBLIC TRANSPORT & PARKING,DISPUTE,CORPORATE TRAVEL MANAGEMENTLIMITED,PINV1613,-46.5
BEIS,ACAS,31/01/2023,PUBLIC TRANSPORT & PARKING,DISPUTE,CORPORATE TRAVEL MANAGEMENTLIMITED,PINV1613,-100.5
BEIS,ACAS,31/01/2023,PUBLIC TRANSPORT & PARKING,DISPUTE,CORPORATE TRAVEL MANAGEMENTLIMITED,PINV1613,-21
BEIS,ACAS,31/01/2023,PUBLIC TRANSPORT & PARKING,DISPUTE,CORPORATE TRAVEL MANAGEMENTLIMITED,PINV1613,-49.6
BEIS,ACAS,31/01/2023,PUBLIC TRANSPORT & PARKING,ADVICE,CORPORATE TRAVEL MANAGEMENTLIMITED,PINV1613,-94
BEIS,ACAS,31/01/2023,PUBLIC TRANSPORT & PARKING,ADVICE,CORPORATE TRAVEL MANAGEMENTLIMITED,PINV1613,-94
BEIS,ACAS,31/01/2023,PUBLIC TRANSPORT & PARKING,ODHR,CORPORATE TRAVEL MANAGEMENTLIMITED,PINV1613,-189.7
BEIS,ACAS,31/01/2023,PUBLIC TRANSPORT & PARKING,ADVICE,CORPORATE TRAVEL MANAGEMENTLIMITED,PINV1613,-72.5
BEIS,ACAS,31/01/2023,PUBLIC TRANSPORT & PARKING,DDAT,CORPORATE TRAVEL MANAGEMENTLIMITED,PINV1613,-55.5
BEIS,ACAS,31/01/2023,HOTEL EXPENSES,ADVICE,CORPORATE TRAVEL MANAGEMENTLIMITED,PINV1613,-102.25
BEIS,ACAS,31/01/2023,PUBLIC TRANSPORT & PARKING,ADVICE,CORPORATE TRAVEL MANAGEMENTLIMITED,PINV1613,401.5
BEIS,ACAS,31/01/2023,PUBLIC TRANSPORT & PARKING,ODHR,CORPORATE TRAVEL MANAGEMENTLIMITED,PINV1613,265.8
BEIS,ACAS,31/01/2023,PUBLIC TRANSPORT & PARKING,F&G,CORPORATE TRAVEL MANAGEMENTLIMITED,PINV1613,-46.2
BEIS,ACAS,31/01/2023,PUBLIC TRANSPORT & PARKING,DISPUTE,CORPORATE TRAVEL MANAGEMENTLIMITED,PINV1613,-197
BEIS,ACAS,31/01/2023,PUBLIC TRANSPORT & PARKING,DISPUTE,CORPORATE TRAVEL MANAGEMENTLIMITED,PINV1613,-14.4
BEIS,ACAS,31/01/2023,PUBLIC TRANSPORT & PARKING,DISPUTE,CORPORATE TRAVEL MANAGEMENTLIMITED,PINV1613,-14.4
BEIS,ACAS,31/01/2023,PUBLIC TRANSPORT & PARKING,ADVICE,CORPORATE TRAVEL MANAGEMENTLIMITED,PINV1613,-66.3
BEIS,ACAS,31/01/2023,PUBLIC TRANSPORT & PARKING,DISPUTE,CORPORATE TRAVEL MANAGEMENTLIMITED,PINV1613,-115.9
BEIS,ACAS,31/01/2023,PUBLIC TRANSPORT & PARKING,ADVICE,CORPORATE TRAVEL MANAGEMENTLIMITED,PINV1613,-27.7
BEIS,ACAS,31/01/2023,HOTEL EXPENSES,DISPUTE,CORPORATE TRAVEL MANAGEMENTLIMITED,PINV1613,-176
BEIS,ACAS,31/01/2023,HOTEL EXPENSES,ADVICE,CORPORATE TRAVEL MANAGEMENTLIMITED,PINV1613,-198.44
BEIS,ACAS,31/01/2023,PUBLIC TRANSPORT & PARKING,STRATEGY,CORPORATE TRAVEL MANAGEMENTLIMITED,PINV1613,-41.5
BEIS,ACAS,31/01/2023,PUBLIC TRANSPORT & PARKING,DISPUTE,CORPORATE TRAVEL MANAGEMENTLIMITED,PINV1613,-107.5
BEIS,ACAS,31/01/2023,PUBLIC TRANSPORT & PARKING,F&G,CORPORATE TRAVEL MANAGEMENTLIMITED,PINV1613,-160.5
BEIS,ACAS,31/01/2023,PUBLIC TRANSPORT & PARKING,DISPUTE,CORPORATE TRAVEL MANAGEMENTLIMITED,PINV1613,-86.5
BEIS,ACAS,31/01/2023,PUBLIC TRANSPORT & PARKING,ODHR,CORPORATE TRAVEL MANAGEMENTLIMITED,PINV1613,-67.3
BEIS,ACAS,31/01/2023,HOTEL EXPENSES,ADVICE,CORPORATE TRAVEL MANAGEMENTLIMITED,PINV1613,-105.55
BEIS,ACAS,31/01/2023,PUBLIC TRANSPORT & PARKING,ODHR,CORPORATE TRAVEL MANAGEMENTLIMITED,PINV1613,-124
BEIS,ACAS,31/01/2023,PUBLIC TRANSPORT & PARKING,ODHR,CORPORATE TRAVEL MANAGEMENTLIMITED,PINV1613,-99.1
BEIS,ACAS,31/01/2023,CO&CAC Non Staff T&S,CAC,CORPORATE TRAVEL MANAGEMENTLIMITED,PINV1613,-86.95
BEIS,ACAS,31/01/2023,HOTEL EXPENSES,ODHR,CORPORATE TRAVEL MANAGEMENTLIMITED,PINV1613,-297.66
BEIS,ACAS,31/01/2023,HOTEL EXPENSES,DISPUTE,CORPORATE TRAVEL MANAGEMENTLIMITED,PINV1613,-176
BEIS,ACAS,31/01/2023,HOTEL EXPENSES,ODHR,CORPORATE TRAVEL MANAGEMENTLIMITED,PINV1613,-198.44
BEIS,ACAS,31/01/2023,HOTEL EXPENSES,DISPUTE,CORPORATE TRAVEL MANAGEMENTLIMITED,PINV1613,-176
BEIS,ACAS,31/01/2023,HOTEL EXPENSES,DISPUTE,CORPORATE TRAVEL MANAGEMENTLIMITED,PINV1613,-176
BEIS,ACAS,31/01/2023,HOTEL EXPENSES,ODHR,CORPORATE TRAVEL MANAGEMENTLIMITED,PINV1613,-198.44
BEIS,ACAS,31/01/2023,PUBLIC TRANSPORT & PARKING,DDAT,CORPORATE TRAVEL MANAGEMENTLIMITED,PINV1613,-135.2
BEIS,ACAS,31/01/2023,PUBLIC TRANSPORT & PARKING,DDAT,CORPORATE TRAVEL MANAGEMENTLIMITED,PINV1613,-147.6
BEIS,ACAS,31/01/2023,PUBLIC TRANSPORT & PARKING,ODHR,CORPORATE TRAVEL MANAGEMENTLIMITED,PINV1613,-121.5
BEIS,ACAS,31/01/2023,PUBLIC TRANSPORT & PARKING,DDAT,CORPORATE TRAVEL MANAGEMENTLIMITED,PINV1613,-101.4
BEIS,ACAS,31/01/2023,PUBLIC TRANSPORT & PARKING,ADVICE,CORPORATE TRAVEL MANAGEMENTLIMITED,PINV1613,-112
BEIS,ACAS,31/01/2023,PUBLIC TRANSPORT & PARKING,ODHR,CORPORATE TRAVEL MANAGEMENTLIMITED,PINV1613,-219.8
BEIS,ACAS,31/01/2023,HOTEL EXPENSES,ADVICE,CORPORATE TRAVEL MANAGEMENTLIMITED,PINV1613,-99.22
BEIS,ACAS,31/01/2023,HOTEL EXPENSES,ODHR,CORPORATE TRAVEL MANAGEMENTLIMITED,PINV1613,-99.22
BEIS,ACAS,31/01/2023,HOTEL EXPENSES,ODHR,CORPORATE TRAVEL MANAGEMENTLIMITED,PINV1613,-99.22
BEIS,ACAS,31/01/2023,HOTEL EXPENSES,ADVICE,CORPORATE TRAVEL MANAGEMENTLIMITED,PINV1613,-99.22
BEIS,ACAS,31/01/2023,HOTEL EXPENSES,ADVICE,CORPORATE TRAVEL MANAGEMENTLIMITED,PINV1613,-99.22
BEIS,ACAS,31/01/2023,HOTEL EXPENSES,ADVICE,CORPORATE TRAVEL MANAGEMENTLIMITED,PINV1613,-70
BEIS,ACAS,31/01/2023,HOTEL EXPENSES,ADVICE,CORPORATE TRAVEL MANAGEMENTLIMITED,PINV1613,-91
BEIS,ACAS,31/01/2023,HOTEL EXPENSES,ADVICE,CORPORATE TRAVEL MANAGEMENTLIMITED,PINV1613,-99.22
BEIS,ACAS,31/01/2023,HOTEL EXPENSES,ADVICE,CORPORATE TRAVEL MANAGEMENTLIMITED,PINV1613,-70
BEIS,ACAS,31/01/2023,HOTEL EXPENSES,STRATEGY,CORPORATE TRAVEL MANAGEMENTLIMITED,PINV1613,-121.85
BEIS,ACAS,31/01/2023,HOTEL EXPENSES,ADVICE,CORPORATE TRAVEL MANAGEMENTLIMITED,PINV1613,-70
BEIS,ACAS,31/01/2023,HOTEL EXPENSES,ADVICE,CORPORATE TRAVEL MANAGEMENTLIMITED,PINV1613,-70
BEIS,ACAS,31/01/2023,HOTEL EXPENSES,ADVICE,CORPORATE TRAVEL MANAGEMENTLIMITED,PINV1613,-91
BEIS,ACAS,31/01/2023,PUBLIC TRANSPORT & PARKING,F&G,CORPORATE TRAVEL MANAGEMENTLIMITED,PINV1613,-45.65
BEIS,ACAS,31/01/2023,PUBLIC TRANSPORT & PARKING,F&G,CORPORATE TRAVEL MANAGEMENTLIMITED,PINV1613,-52.2
BEIS,ACAS,31/01/2023,PUBLIC TRANSPORT & PARKING,F&G,CORPORATE TRAVEL MANAGEMENTLIMITED,PINV1613,-99
BEIS,ACAS,31/01/2023,PUBLIC TRANSPORT & PARKING,DISPUTE,CORPORATE TRAVEL MANAGEMENTLIMITED,PINV1613,-87.2
BEIS,ACAS,31/01/2023,PUBLIC TRANSPORT & PARKING,DISPUTE,CORPORATE TRAVEL MANAGEMENTLIMITED,PINV1613,-114
BEIS,ACAS,31/01/2023,PUBLIC TRANSPORT & PARKING,DISPUTE,CORPORATE TRAVEL MANAGEMENTLIMITED,PINV1613,-14.4
BEIS,ACAS,31/01/2023,PUBLIC TRANSPORT & PARKING,DDAT,CORPORATE TRAVEL MANAGEMENTLIMITED,PINV1613,-80
BEIS,ACAS,31/01/2023,PUBLIC TRANSPORT & PARKING,F&G,CORPORATE TRAVEL MANAGEMENTLIMITED,PINV1613,-35.7
BEIS,ACAS,31/01/2023,PUBLIC TRANSPORT & PARKING,ADVICE,CORPORATE TRAVEL MANAGEMENTLIMITED,PINV1613,-189
BEIS,ACAS,31/01/2023,PUBLIC TRANSPORT & PARKING,F&G,CORPORATE TRAVEL MANAGEMENTLIMITED,PINV1613,-129.5
BEIS,ACAS,31/01/2023,PUBLIC TRANSPORT & PARKING,F&G,CORPORATE TRAVEL MANAGEMENTLIMITED,PINV1613,-47.4
BEIS,ACAS,31/01/2023,PUBLIC TRANSPORT & PARKING,DISPUTE,CORPORATE TRAVEL MANAGEMENTLIMITED,PINV1613,-158.5
BEIS,ACAS,31/01/2023,PUBLIC TRANSPORT & PARKING,DDAT,CORPORATE TRAVEL MANAGEMENTLIMITED,PINV1613,-145.4
BEIS,ACAS,31/01/2023,PUBLIC TRANSPORT & PARKING,DDAT,CORPORATE TRAVEL MANAGEMENTLIMITED,PINV1613,-14.4
BEIS,ACAS,31/01/2023,HOTEL EXPENSES,DISPUTE,CORPORATE TRAVEL MANAGEMENTLIMITED,PINV1613,-107.42
BEIS,ACAS,31/01/2023,HOTEL EXPENSES,ADVICE,CORPORATE TRAVEL MANAGEMENTLIMITED,PINV1613,-137.05
BEIS,ACAS,31/01/2023,PUBLIC TRANSPORT & PARKING,ADVICE,CORPORATE TRAVEL MANAGEMENTLIMITED,PINV1613,-99.3
BEIS,ACAS,31/01/2023,PUBLIC TRANSPORT & PARKING,STRATEGY,CORPORATE TRAVEL MANAGEMENTLIMITED,PINV1613,-125.7
BEIS,ACAS,31/01/2023,PUBLIC TRANSPORT & PARKING,DDAT,CORPORATE TRAVEL MANAGEMENTLIMITED,PINV1613,-149.8
BEIS,ACAS,31/01/2023,PUBLIC TRANSPORT & PARKING,DDAT,CORPORATE TRAVEL MANAGEMENTLIMITED,PINV1613,-149.8
BEIS,ACAS,31/01/2023,PUBLIC TRANSPORT & PARKING,DISPUTE,CORPORATE TRAVEL MANAGEMENTLIMITED,PINV1613,-148.6
BEIS,ACAS,31/01/2023,PUBLIC TRANSPORT & PARKING,DDAT,CORPORATE TRAVEL MANAGEMENTLIMITED,PINV1613,-78.4
BEIS,ACAS,31/01/2023,PUBLIC TRANSPORT & PARKING,ODHR,CORPORATE TRAVEL MANAGEMENTLIMITED,PINV1613,-365.6
BEIS,ACAS,31/01/2023,PUBLIC TRANSPORT & PARKING,DISPUTE,CORPORATE TRAVEL MANAGEMENTLIMITED,PINV1613,-109.9
BEIS,ACAS,31/01/2023,PUBLIC TRANSPORT & PARKING,DDAT,CORPORATE TRAVEL MANAGEMENTLIMITED,PINV1613,-16.2
BEIS,ACAS,31/01/2023,PUBLIC TRANSPORT & PARKING,ADVICE,CORPORATE TRAVEL MANAGEMENTLIMITED,PINV1613,-133.2
BEIS,ACAS,31/01/2023,PUBLIC TRANSPORT & PARKING,DISPUTE,CORPORATE TRAVEL MANAGEMENTLIMITED,PINV1613,105.5
BEIS,ACAS,31/01/2023,PUBLIC TRANSPORT & PARKING,F&G,CORPORATE TRAVEL MANAGEMENTLIMITED,PINV1613,-271.9
BEIS,ACAS,31/01/2023,HOTEL EXPENSES,DDAT,CORPORATE TRAVEL MANAGEMENTLIMITED,PINV1613,-372
BEIS,ACAS,31/01/2023,HOTEL EXPENSES,DDAT,CORPORATE TRAVEL MANAGEMENTLIMITED,PINV1613,-143
BEIS,ACAS,31/01/2023,HOTEL EXPENSES,ADVICE,CORPORATE TRAVEL MANAGEMENTLIMITED,PINV1613,-108.33
BEIS,ACAS,31/01/2023,HOTEL EXPENSES,DDAT,CORPORATE TRAVEL MANAGEMENTLIMITED,PINV1613,-372
BEIS,ACAS,31/01/2023,HOTEL EXPENSES,F&G,CORPORATE TRAVEL MANAGEMENTLIMITED,PINV1613,-161
BEIS,ACAS,31/01/2023,PUBLIC TRANSPORT & PARKING,STRATEGY,CORPORATE TRAVEL MANAGEMENTLIMITED,PINV1613,-70
BEIS,ACAS,31/01/2023,PUBLIC TRANSPORT & PARKING,DISPUTE,CORPORATE TRAVEL MANAGEMENTLIMITED,PINV1613,-202.2
BEIS,ACAS,31/01/2023,PUBLIC TRANSPORT & PARKING,STRATEGY,CORPORATE TRAVEL MANAGEMENTLIMITED,PINV1613,-128.3
BEIS,ACAS,31/01/2023,PUBLIC TRANSPORT & PARKING,ADVICE,CORPORATE TRAVEL MANAGEMENTLIMITED,PINV1613,-20
BEIS,ACAS,31/01/2023,HOTEL EXPENSES,F&G,CORPORATE TRAVEL MANAGEMENTLIMITED,PINV1613,-67
BEIS,ACAS,31/01/2023,HOTEL EXPENSES,DISPUTE,CORPORATE TRAVEL MANAGEMENTLIMITED,PINV1613,-67
BEIS,ACAS,31/01/2023,HOTEL EXPENSES,STRATEGY,CORPORATE TRAVEL MANAGEMENTLIMITED,PINV1613,-67
BEIS,ACAS,31/01/2023,HOTEL EXPENSES,ODHR,CORPORATE TRAVEL MANAGEMENTLIMITED,PINV1613,-67
BEIS,ACAS,31/01/2023,HOTEL EXPENSES,F&G,CORPORATE TRAVEL MANAGEMENTLIMITED,PINV1613,-67
BEIS,ACAS,31/01/2023,HOTEL EXPENSES,F&G,CORPORATE TRAVEL MANAGEMENTLIMITED,PINV1613,-67
BEIS,ACAS,31/01/2023,HOTEL EXPENSES,DISPUTE,CORPORATE TRAVEL MANAGEMENTLIMITED,PINV1613,-67
BEIS,ACAS,31/01/2023,PUBLIC TRANSPORT & PARKING,STRATEGY,CORPORATE TRAVEL MANAGEMENTLIMITED,PINV1613,-124.6
BEIS,ACAS,31/01/2023,PUBLIC TRANSPORT & PARKING,DDAT,CORPORATE TRAVEL MANAGEMENTLIMITED,PINV1613,-154.6
BEIS,ACAS,31/01/2023,PUBLIC TRANSPORT & PARKING,DDAT,CORPORATE TRAVEL MANAGEMENTLIMITED,PINV1613,-154.6
BEIS,ACAS,31/01/2023,PUBLIC TRANSPORT & PARKING,DDAT,CORPORATE TRAVEL MANAGEMENTLIMITED,PINV1613,-148.6
BEIS,ACAS,31/01/2023,PUBLIC TRANSPORT & PARKING,DISPUTE,CORPORATE TRAVEL MANAGEMENTLIMITED,PINV1613,17.4
BEIS,ACAS,31/01/2023,PUBLIC TRANSPORT & PARKING,DISPUTE,CORPORATE TRAVEL MANAGEMENTLIMITED,PINV1613,128.2
BEIS,ACAS,31/01/2023,HOTEL EXPENSES,ODHR,CORPORATE TRAVEL MANAGEMENTLIMITED,PINV1613,-171
BEIS,ACAS,31/01/2023,PUBLIC TRANSPORT & PARKING,F&G,CORPORATE TRAVEL MANAGEMENTLIMITED,PINV1613,-14.4
BEIS,ACAS,31/01/2023,PUBLIC TRANSPORT & PARKING,DISPUTE,CORPORATE TRAVEL MANAGEMENTLIMITED,PINV1613,-203
BEIS,ACAS,31/01/2023,HOTEL EXPENSES,DDAT,CORPORATE TRAVEL MANAGEMENTLIMITED,PINV1613,-111.6
BEIS,ACAS,31/01/2023,HOTEL EXPENSES,DDAT,CORPORATE TRAVEL MANAGEMENTLIMITED,PINV1613,-186
BEIS,ACAS,31/01/2023,HOTEL EXPENSES,DDAT,CORPORATE TRAVEL MANAGEMENTLIMITED,PINV1613,-169
BEIS,ACAS,31/01/2023,HOTEL EXPENSES,ADVICE,CORPORATE TRAVEL MANAGEMENTLIMITED,PINV1613,-66.12
BEIS,ACAS,31/01/2023,HOTEL EXPENSES,DDAT,CORPORATE TRAVEL MANAGEMENTLIMITED,PINV1613,-179
BEIS,ACAS,31/01/2023,HOTEL EXPENSES,ADVICE,CORPORATE TRAVEL MANAGEMENTLIMITED,PINV1613,-67
BEIS,ACAS,31/01/2023,HOTEL EXPENSES,DDAT,CORPORATE TRAVEL MANAGEMENTLIMITED,PINV1613,-186
BEIS,ACAS,31/01/2023,HOTEL EXPENSES,ADVICE,CORPORATE TRAVEL MANAGEMENTLIMITED,PINV1613,-121.85
BEIS,ACAS,31/01/2023,PUBLIC TRANSPORT & PARKING,ODHR,CORPORATE TRAVEL MANAGEMENTLIMITED,PINV1613,-135.1
BEIS,ACAS,31/01/2023,PUBLIC TRANSPORT & PARKING,F&G,CORPORATE TRAVEL MANAGEMENTLIMITED,PINV1613,-140
BEIS,ACAS,31/01/2023,PUBLIC TRANSPORT & PARKING,STRATEGY,CORPORATE TRAVEL MANAGEMENTLIMITED,PINV1613,-209.8
BEIS,ACAS,31/01/2023,PUBLIC TRANSPORT & PARKING,DISPUTE,CORPORATE TRAVEL MANAGEMENTLIMITED,PINV1613,-100.5
BEIS,ACAS,31/01/2023,PUBLIC TRANSPORT & PARKING,DISPUTE,CORPORATE TRAVEL MANAGEMENTLIMITED,PINV1613,-65
BEIS,ACAS,31/01/2023,PUBLIC TRANSPORT & PARKING,DISPUTE,CORPORATE TRAVEL MANAGEMENTLIMITED,PINV1613,-39.6
BEIS,ACAS,31/01/2023,PUBLIC TRANSPORT & PARKING,DDAT,CORPORATE TRAVEL MANAGEMENTLIMITED,PINV1613,-185
BEIS,ACAS,31/01/2023,PUBLIC TRANSPORT & PARKING,DDAT,CORPORATE TRAVEL MANAGEMENTLIMITED,PINV1613,-67
BEIS,ACAS,31/01/2023,PUBLIC TRANSPORT & PARKING,ODHR,CORPORATE TRAVEL MANAGEMENTLIMITED,PINV1613,-189.2
BEIS,ACAS,31/01/2023,PUBLIC TRANSPORT & PARKING,ADVICE,CORPORATE TRAVEL MANAGEMENTLIMITED,PINV1613,-256.3
BEIS,ACAS,31/01/2023,PUBLIC TRANSPORT & PARKING,F&G,CORPORATE TRAVEL MANAGEMENTLIMITED,PINV1613,-141.7
BEIS,ACAS,31/01/2023,PUBLIC TRANSPORT & PARKING,F&G,CORPORATE TRAVEL MANAGEMENTLIMITED,PINV1613,-374.8
BEIS,ACAS,31/01/2023,PUBLIC TRANSPORT & PARKING,DDAT,CORPORATE TRAVEL MANAGEMENTLIMITED,PINV1613,-6.3
BEIS,ACAS,31/01/2023,PUBLIC TRANSPORT & PARKING,DDAT,CORPORATE TRAVEL MANAGEMENTLIMITED,PINV1613,-6.3
BEIS,ACAS,31/01/2023,HOTEL EXPENSES,DDAT,CORPORATE TRAVEL MANAGEMENTLIMITED,PINV1613,-140
BEIS,ACAS,31/01/2023,PUBLIC TRANSPORT & PARKING,DISPUTE,CORPORATE TRAVEL MANAGEMENTLIMITED,PINV1613,-49.1
BEIS,ACAS,31/01/2023,PUBLIC TRANSPORT & PARKING,STRATEGY,CORPORATE TRAVEL MANAGEMENTLIMITED,PINV1613,-250.9
BEIS,ACAS,31/01/2023,PUBLIC TRANSPORT & PARKING,DISPUTE,CORPORATE TRAVEL MANAGEMENTLIMITED,PINV1613,-304.5
BEIS,ACAS,31/01/2023,PUBLIC TRANSPORT & PARKING,ADVICE,CORPORATE TRAVEL MANAGEMENTLIMITED,PINV1613,-176.4
BEIS,ACAS,31/01/2023,PUBLIC TRANSPORT & PARKING,F&G,CORPORATE TRAVEL MANAGEMENTLIMITED,PINV1613,-190
BEIS,ACAS,31/01/2023,PUBLIC TRANSPORT & PARKING,F&G,CORPORATE TRAVEL MANAGEMENTLIMITED,PINV1613,-46.2
BEIS,ACAS,31/01/2023,PUBLIC TRANSPORT & PARKING,F&G,CORPORATE TRAVEL MANAGEMENTLIMITED,PINV1613,-203
BEIS,ACAS,31/01/2023,PUBLIC TRANSPORT & PARKING,ODHR,CORPORATE TRAVEL MANAGEMENTLIMITED,PINV1613,-106.7
BEIS,ACAS,31/01/2023,PUBLIC TRANSPORT & PARKING,ODHR,CORPORATE TRAVEL MANAGEMENTLIMITED,PINV1613,-58.2
BEIS,ACAS,31/01/2023,HOTEL EXPENSES,ADVICE,CORPORATE TRAVEL MANAGEMENTLIMITED,PINV1613,-75.08
BEIS,ACAS,31/01/2023,HOTEL EXPENSES,F&G,CORPORATE TRAVEL MANAGEMENTLIMITED,PINV1613,-141
BEIS,ACAS,31/01/2023,PUBLIC TRANSPORT & PARKING,DISPUTE,CORPORATE TRAVEL MANAGEMENTLIMITED,PINV1613,-108.6
BEIS,ACAS,31/01/2023,HOTEL EXPENSES,ADVICE,CORPORATE TRAVEL MANAGEMENTLIMITED,PINV1613,-103.45
BEIS,ACAS,31/01/2023,HOTEL EXPENSES,ADVICE,CORPORATE TRAVEL MANAGEMENTLIMITED,PINV1613,-103.4
BEIS,ACAS,31/01/2023,HOTEL EXPENSES,ADVICE,CORPORATE TRAVEL MANAGEMENTLIMITED,PINV1613,-34.92
BEIS,ACAS,31/01/2023,PUBLIC TRANSPORT & PARKING,ADVICE,CORPORATE TRAVEL MANAGEMENTLIMITED,PINV1613,-105.6
BEIS,ACAS,31/01/2023,PUBLIC TRANSPORT & PARKING,F&G,CORPORATE TRAVEL MANAGEMENTLIMITED,PINV1613,-203
BEIS,ACAS,31/01/2023,PUBLIC TRANSPORT & PARKING,STRATEGY,CORPORATE TRAVEL MANAGEMENTLIMITED,PINV1613,-14.4
BEIS,ACAS,31/01/2023,PUBLIC TRANSPORT & PARKING,ADVICE,CORPORATE TRAVEL MANAGEMENTLIMITED,PINV1613,-171
BEIS,ACAS,31/01/2023,PUBLIC TRANSPORT & PARKING,ODHR,CORPORATE TRAVEL MANAGEMENTLIMITED,PINV1613,-209.1
BEIS,ACAS,31/01/2023,HOTEL EXPENSES,ADVICE,CORPORATE TRAVEL MANAGEMENTLIMITED,PINV1613,-75
BEIS,ACAS,31/01/2023,HOTEL EXPENSES,ADVICE,CORPORATE TRAVEL MANAGEMENTLIMITED,PINV1613,-71.25
BEIS,ACAS,31/01/2023,HOTEL EXPENSES,ADVICE,CORPORATE TRAVEL MANAGEMENTLIMITED,PINV1613,-84.52
BEIS,ACAS,31/01/2023,HOTEL EXPENSES,STRATEGY,CORPORATE TRAVEL MANAGEMENTLIMITED,PINV1613,-322.55
BEIS,ACAS,31/01/2023,HOTEL EXPENSES,STRATEGY,CORPORATE TRAVEL MANAGEMENTLIMITED,PINV1613,-322.55
BEIS,ACAS,31/01/2023,PUBLIC TRANSPORT & PARKING,ODHR,CORPORATE TRAVEL MANAGEMENTLIMITED,PINV1613,-194.8
BEIS,ACAS,31/01/2023,PUBLIC TRANSPORT & PARKING,STRATEGY,CORPORATE TRAVEL MANAGEMENTLIMITED,PINV1613,-84.5
BEIS,ACAS,31/01/2023,PUBLIC TRANSPORT & PARKING,F&G,CORPORATE TRAVEL MANAGEMENTLIMITED,PINV1613,-200
BEIS,ACAS,31/01/2023,PUBLIC TRANSPORT & PARKING,F&G,CORPORATE TRAVEL MANAGEMENTLIMITED,PINV1613,-86.68
BEIS,ACAS,31/01/2023,PUBLIC TRANSPORT & PARKING,DISPUTE,CORPORATE TRAVEL MANAGEMENTLIMITED,PINV1613,-14.4
BEIS,ACAS,31/01/2023,PUBLIC TRANSPORT & PARKING,DISPUTE,CORPORATE TRAVEL MANAGEMENTLIMITED,PINV1613,-49.9
BEIS,ACAS,31/01/2023,PUBLIC TRANSPORT & PARKING,F&G,CORPORATE TRAVEL MANAGEMENTLIMITED,PINV1613,-52
BEIS,ACAS,31/01/2023,PUBLIC TRANSPORT & PARKING,F&G,CORPORATE TRAVEL MANAGEMENTLIMITED,PINV1613,-64
BEIS,ACAS,31/01/2023,HOTEL EXPENSES,F&G,CORPORATE TRAVEL MANAGEMENTLIMITED,PINV1613,-141
BEIS,ACAS,31/01/2023,HOTEL EXPENSES,DDAT,CORPORATE TRAVEL MANAGEMENTLIMITED,PINV1613,-125
BEIS,ACAS,31/01/2023,HOTEL EXPENSES,STRATEGY,CORPORATE TRAVEL MANAGEMENTLIMITED,PINV1613,-125
BEIS,ACAS,31/01/2023,HOTEL EXPENSES,F&G,CORPORATE TRAVEL MANAGEMENTLIMITED,PINV1613,-141
BEIS,ACAS,31/01/2023,HOTEL EXPENSES,DDAT,CORPORATE TRAVEL MANAGEMENTLIMITED,PINV1613,-161
BEIS,ACAS,31/01/2023,HOTEL EXPENSES,F&G,CORPORATE TRAVEL MANAGEMENTLIMITED,PINV1613,-125
BEIS,ACAS,31/01/2023,HOTEL EXPENSES,DISPUTE,CORPORATE TRAVEL MANAGEMENTLIMITED,PINV1613,-125
BEIS,ACAS,31/01/2023,HOTEL EXPENSES,F&G,CORPORATE TRAVEL MANAGEMENTLIMITED,PINV1613,-141
BEIS,ACAS,31/01/2023,HOTEL EXPENSES,F&G,CORPORATE TRAVEL MANAGEMENTLIMITED,PINV1613,-125
BEIS,ACAS,31/01/2023,HOTEL EXPENSES,F&G,CORPORATE TRAVEL MANAGEMENTLIMITED,PINV1613,-125
BEIS,ACAS,31/01/2023,HOTEL EXPENSES,ADVICE,CORPORATE TRAVEL MANAGEMENTLIMITED,PINV1613,-79.57
BEIS,ACAS,31/01/2023,HOTEL EXPENSES,ODHR,CORPORATE TRAVEL MANAGEMENTLIMITED,PINV1613,-125
BEIS,ACAS,31/01/2023,HOTEL EXPENSES,DISPUTE,CORPORATE TRAVEL MANAGEMENTLIMITED,PINV1613,-221.4
BEIS,ACAS,31/01/2023,HOTEL EXPENSES,F&G,CORPORATE TRAVEL MANAGEMENTLIMITED,PINV1613,-125
BEIS,ACAS,31/01/2023,HOTEL EXPENSES,DISPUTE,CORPORATE TRAVEL MANAGEMENTLIMITED,PINV1613,-125
BEIS,ACAS,31/01/2023,HOTEL EXPENSES,ODHR,CORPORATE TRAVEL MANAGEMENTLIMITED,PINV1613,-147
BEIS,ACAS,31/01/2023,PUBLIC TRANSPORT & PARKING,DDAT,CORPORATE TRAVEL MANAGEMENTLIMITED,PINV1613,-46.2
BEIS,ACAS,31/01/2023,PUBLIC TRANSPORT & PARKING,ODHR,CORPORATE TRAVEL MANAGEMENTLIMITED,PINV1613,-52.2
BEIS,ACAS,31/01/2023,PUBLIC TRANSPORT & PARKING,ODHR,CORPORATE TRAVEL MANAGEMENTLIMITED,PINV1613,-244.8
BEIS,ACAS,31/01/2023,PUBLIC TRANSPORT & PARKING,ADVICE,CORPORATE TRAVEL MANAGEMENTLIMITED,PINV1613,-90.5
BEIS,ACAS,31/01/2023,PUBLIC TRANSPORT & PARKING,ADVICE,CORPORATE TRAVEL MANAGEMENTLIMITED,PINV1613,-90.5
BEIS,ACAS,31/01/2023,HOTEL EXPENSES,ADVICE,CORPORATE TRAVEL MANAGEMENTLIMITED,PINV1613,-90.83
BEIS,ACAS,31/01/2023,HOTEL EXPENSES,STRATEGY,CORPORATE TRAVEL MANAGEMENTLIMITED,PINV1613,-141
BEIS,ACAS,31/01/2023,HOTEL EXPENSES,CENTRE,CORPORATE TRAVEL MANAGEMENTLIMITED,PINV1613,-123.05
BEIS,ACAS,31/01/2023,PUBLIC TRANSPORT & PARKING,F&G,CORPORATE TRAVEL MANAGEMENTLIMITED,PINV1613,-97.95
BEIS,ACAS,31/01/2023,PUBLIC TRANSPORT & PARKING,ADVICE,CORPORATE TRAVEL MANAGEMENTLIMITED,PINV1613,-126.4
BEIS,ACAS,31/01/2023,PUBLIC TRANSPORT & PARKING,ODHR,CORPORATE TRAVEL MANAGEMENTLIMITED,PINV1613,-163.65
BEIS,ACAS,31/01/2023,HOTEL EXPENSES,CENTRE,CORPORATE TRAVEL MANAGEMENTLIMITED,PINV1613,-611
BEIS,ACAS,06/04/2023,TRAINERS & GUEST SPEAKERS,ODHR,ERNST & YOUNG LLP,PINV1623,2183.74
BEIS,ACAS,01/04/2023,PUBLICITY,STRATEGY,CISION,PINV1624,2670
BEIS,ACAS,06/04/2023,LEARNING RESOURCE MATERIALS,ODHR,ALEXANDER MANN SOLUTIONS LTD,PINV1626,14963.87
BEIS,ACAS,06/04/2023,AGENCY STAFF,F&G,ALEXANDER MANN SOLUTIONS LTD,PINV1628,310.39
BEIS,ACAS,31/03/2023,PROFESSIONAL FEES,DDAT,TISSKI LTD,PINV1630,12012
BEIS,ACAS,11/04/2023,Lease Liability,F&G,GOVERNMENT PROPERTY AGENCY,PINV1633,105000
BEIS,ACAS,23/03/2023,AGENCY STAFF,F&G,ALEXANDER MANN SOLUTIONS LTD,PINV1634,310.39
BEIS,ACAS,01/04/2023,VENUE HIRE (REC VAT),F&G,CLOCKWISE SAVOY LIMITED,PINV1635,5448
BEIS,ACAS,01/04/2023,VENUE HIRE (REC VAT),F&G,CLOCKWISE SAVOY LIMITED,PINV1636,1152
BEIS,ACAS,05/04/2023,PHOTOCOPIERS,DDAT,Canon (UK) Ltd,PINV1639,3524.92
BEIS,ACAS,05/04/2023,PHOTOCOPIERS,DDAT,Canon (UK) Ltd,PINV1639,391.66
BEIS,ACAS,06/04/2023,AGENCY STAFF,DISPUTE,ALEXANDER MANN SOLUTIONS LTD,PINV1640,638.03
BEIS,ACAS,13/04/2023,AGENCY STAFF,DISPUTE,ALEXANDER MANN SOLUTIONS LTD,PINV1641,523.44
BEIS,ACAS,30/03/2023,PROFESSIONAL FEES,F&G,GOVERNMENT PROPERTY AGENCY,PINV1642,11271.71
BEIS,ACAS,30/03/2023,SERVICE CHARGES,F&G,GOVERNMENT PROPERTY AGENCY,PINV1642,1869.3
BEIS,ACAS,30/03/2023,FACILITIES MANAGEMENT,F&G,GOVERNMENT PROPERTY AGENCY,PINV1642,17183.74
BEIS,ACAS,30/03/2023,RATES,F&G,GOVERNMENT PROPERTY AGENCY,PINV1642,8877.22
BEIS,ACAS,30/03/2023,Lease Liability,F&G,GOVERNMENT PROPERTY AGENCY,PINV1642,32387.63
BEIS,ACAS,06/04/2023,AGENCY STAFF,ODHR,ALEXANDER MANN SOLUTIONS LTD,PINV1644,4003.44
BEIS,ACAS,05/04/2023,PHOTOCOPIERS,DDAT,Canon (UK) Ltd,PINV1645,2591.55
BEIS,ACAS,05/04/2023,PHOTOCOPIERS,DDAT,Canon (UK) Ltd,PINV1645,287.95
BEIS,ACAS,05/04/2023,PHOTOCOPIERS,DDAT,Canon (UK) Ltd,PINV1645,492.48
BEIS,ACAS,05/04/2023,PHOTOCOPIERS,DDAT,Canon (UK) Ltd,PINV1645,54.72
BEIS,ACAS,05/04/2023,PHOTOCOPIERS,DDAT,Canon (UK) Ltd,PINV1645,566.29
BEIS,ACAS,05/04/2023,PHOTOCOPIERS,DDAT,Canon (UK) Ltd,PINV1645,62.92
BEIS,ACAS,05/04/2023,PHOTOCOPIERS,DDAT,Canon (UK) Ltd,PINV1645,428.26
BEIS,ACAS,05/04/2023,PHOTOCOPIERS,DDAT,Canon (UK) Ltd,PINV1645,47.58
BEIS,ACAS,09/04/2023,MOBILE PHONES,DDAT,TELEFONICA UK LTD (O2),PINV1646,1875.63
BEIS,ACAS,09/04/2023,MOBILE PHONES,DDAT,TELEFONICA UK LTD (O2),PINV1646,208.4
BEIS,ACAS,06/04/2023,LEARNING RESOURCE MATERIALS,ODHR,ALEXANDER MANN SOLUTIONS LTD,PINV1648,4914.43
BEIS,ACAS,06/04/2023,SOFTWARE & LICENCES,DDAT,GOTO TECHNOLOGIES UK LTD,PINV1649,6384.19
BEIS,ACAS,04/04/2023,OTHER RESEARCH,STRATEGY,THE UNIVERSITY OF SHEFFIELD,PINV1650,11895.3
BEIS,ACAS,24/03/2023,EXTERNAL LEARNING,ODHR,ESCAPELY VIRTUAL LLC,PINV1652,1558.31
BEIS,ACAS,24/03/2023,EXTERNAL LEARNING,ODHR,ESCAPELY VIRTUAL LLC,PINV1652,1558.31
BEIS,ACAS,20/04/2023,AGENCY STAFF,DISPUTE,ALEXANDER MANN SOLUTIONS LTD,PINV1653,514.72
BEIS,ACAS,31/01/2023,AGENCY STAFF,CENTRE,ALEXANDER MANN SOLUTIONS LTD,PINV1654,3150.3
BEIS,ACAS,09/02/2023,AGENCY STAFF,CENTRE,ALEXANDER MANN SOLUTIONS LTD,PINV1655,3150.3
BEIS,ACAS,20/04/2023,AGENCY STAFF,CENTRE,ALEXANDER MANN SOLUTIONS LTD,PINV1656,6300.6
BEIS,ACAS,31/01/2023,AGENCY STAFF,CENTRE,ALEXANDER MANN SOLUTIONS LTD,PINV1657,1890.18
BEIS,ACAS,09/02/2023,AGENCY STAFF,CENTRE,ALEXANDER MANN SOLUTIONS LTD,PINV1658,3150.3
BEIS,ACAS,20/04/2023,AGENCY STAFF,CENTRE,ALEXANDER MANN SOLUTIONS LTD,PINV1659,5040.48
BEIS,ACAS,20/04/2023,AGENCY STAFF,F&G,ALEXANDER MANN SOLUTIONS LTD,PINV1660,314.06
BEIS,ACAS,17/04/2023,GOVT SOLICITORS FEES,DISPUTE,GOVERNMENT LEGAL DEPARTMENT,PINV1662,1685.52
BEIS,ACAS,03/04/2023,AGENCY STAFF,STRATEGY,MORGAN MCKINLEY GROUP LTD,PINV1664,3021.36
BEIS,ACAS,18/01/2023,REFUNDS,ADVICE,LITTLEINCH LIMITED,PINV1665,2160
BEIS,ACAS,21/04/2023,AGENCY STAFF,STRATEGY,MORGAN MCKINLEY GROUP LTD,PINV1667,1510.68
BEIS,ACAS,19/04/2023,CHILDCARE VOUCHERS,F&G,EDENRED CHILDCARE VOUCHERS LTD,PINV1668,1531
BEIS,ACAS,20/04/2023,LEARNING RESOURCE MATERIALS,ODHR,ALEXANDER MANN SOLUTIONS LTD,PINV1669,1638.14
BEIS,ACAS,20/04/2023,LEARNING RESOURCE MATERIALS,ODHR,ALEXANDER MANN SOLUTIONS LTD,PINV1669,2457.22
BEIS,ACAS,20/04/2023,LEARNING RESOURCE MATERIALS,ODHR,ALEXANDER MANN SOLUTIONS LTD,PINV1669,819.07
BEIS,ACAS,20/04/2023,LEARNING RESOURCE MATERIALS,ODHR,ALEXANDER MANN SOLUTIONS LTD,PINV1670,1575.14
BEIS,ACAS,24/03/2023,STAFF RECRUITMENT COSTS,ODHR,CABINET OFFICE,PINV1671,354
BEIS,ACAS,12/04/2023,PROFESSIONAL FEES,DDAT,GAMMA TELECOM LIMITED,PINV1672,4438.92
BEIS,ACAS,25/04/2023,EXTERNAL LEARNING,ODHR,MHR INTERNATIONAL UK LTD,PINV1678,432
BEIS,ACAS,25/04/2023,EXTERNAL LEARNING,ODHR,MHR INTERNATIONAL UK LTD,PINV1679,1512
BEIS,ACAS,25/04/2023,ACAS COUNCILLORS,CAC,SHARED SERVICES CONNECTED LImITED,PINV1682,4088.54
BEIS,ACAS,25/04/2023,ACAS COUNCILLORS,CAC,SHARED SERVICES CONNECTED LImITED,PINV1682,2303.4
BEIS,ACAS,16/02/2023,AGENCY STAFF,CENTRE,ALEXANDER MANN SOLUTIONS LTD,PINV1683,3150.3
BEIS,ACAS,04/04/2023,OTHER RESEARCH,STRATEGY,UNIVERSITY OF WARWICK,PINV1684,90000
BEIS,ACAS,14/04/2023,PERSONAL EXPENSE,DISPUTE,NAME / DESCRIPTION WITHHELD,EXPS1901,260.55
BEIS,ACAS,14/04/2023,PERSONAL EXPENSE,DISPUTE,NAME / DESCRIPTION WITHHELD,EXPS1901,25
BEIS,ACAS,14/04/2023,PERSONAL EXPENSE,DISPUTE,NAME / DESCRIPTION WITHHELD,EXPS1901,5
